[Event "*** Titled Tuesday Blitz"]
[Site "Chess.com"]
[Date "2020.12.29"]
[Round "6"]
[White "zmeeed67"]
[Black "PawnEatingZombie"]
[Result "0-1"]
[WhiteElo "2379"]
[BlackElo "2252"]
[TimeControl "180+1"]
[EndTime "11:07:00 PST"]
[Termination "PawnEatingZombie won on time"]

1. e4 {[%clk 0:03:00.9]} 1... c6 {[%clk 0:02:59.7]} 2. d4 {[%clk 0:02:59.6]}
2... d5 {[%clk 0:02:59.9]} 3. e5 {[%clk 0:02:59.7]} 3... Bf5 {[%clk 0:03:00.1]}
4. Nf3 {[%clk 0:02:59.6]} 4... e6 {[%clk 0:02:59.7]} 5. Be2 {[%clk 0:02:59.7]}
5... Ne7 {[%clk 0:03:00.2]} 6. O-O {[%clk 0:02:59.2]} 6... Nc8 {[%clk
0:03:00.6]} 7. c3 {[%clk 0:02:59.1]} 7... Be7 {[%clk 0:02:59.2]} 8. Nbd2 {[%clk
0:02:57.7]} 8... O-O {[%clk 0:02:59]} 9. a3 {[%clk 0:02:53.3]} 9... a5 {[%clk
0:02:57.8]} 10. b3 {[%clk 0:02:47.3]} 10... b5 {[%clk 0:02:47.6]} 11. Bb2 {[%clk
0:02:36.7]} 11... Nb6 {[%clk 0:02:37.3]} 12. Re1 {[%clk 0:02:31.4]} 12... N8d7
{[%clk 0:02:35.9]} 13. Nf1 {[%clk 0:02:30.9]} 13... a4 {[%clk 0:02:29.4]} 14. b4
{[%clk 0:02:27.3]} 14... Nc4 {[%clk 0:02:29.5]} 15. Bc1 {[%clk 0:02:21.5]} 15...
h6 {[%clk 0:02:25.2]} 16. Ne3 {[%clk 0:02:21.4]} 16... Bh7 {[%clk 0:02:24.8]}
17. Nxc4 {[%clk 0:02:08.1]} 17... dxc4 {[%clk 0:02:21.1]} 18. Nd2 {[%clk
0:02:05.7]} 18... Nb6 {[%clk 0:02:18.9]} 19. Bf3 {[%clk 0:02:04.1]} 19... Nd5
{[%clk 0:02:16.1]} 20. Bb2 {[%clk 0:01:51.6]} 20... Qd7 {[%clk 0:02:08.7]} 21.
Be4 {[%clk 0:01:51.1]} 21... f5 {[%clk 0:01:25.3]} 22. exf6 {[%clk 0:01:48.3]}
22... Rxf6 {[%clk 0:01:25.3]} 23. Qc2 {[%clk 0:01:46.1]} 23... Bxe4 {[%clk
0:01:23]} 24. Nxe4 {[%clk 0:01:42.8]} 24... Rf7 {[%clk 0:01:22.1]} 25. Bc1
{[%clk 0:01:30.9]} 25... Raf8 {[%clk 0:01:20.5]} 26. Re2 {[%clk 0:01:28.1]}
26... Bd6 {[%clk 0:01:19.5]} 27. Bd2 {[%clk 0:01:11.1]} 27... Qc7 {[%clk
0:00:50.3]} 28. h3 {[%clk 0:01:04.5]} 28... Re7 {[%clk 0:00:41]} 29. Rae1 {[%clk
0:01:03.2]} 29... Rfe8 {[%clk 0:00:33.1]} 30. Nxd6 {[%clk 0:00:42.6]} 30... Qxd6
{[%clk 0:00:32.6]} 31. Qg6 {[%clk 0:00:42.6]} 31... Nf4 {[%clk 0:00:24]} 32.
Bxf4 {[%clk 0:00:38.6]} 32... Qxf4 {[%clk 0:00:24.9]} 33. Qe4 {[%clk 0:00:24.4]}
33... Qxe4 {[%clk 0:00:23.1]} 34. Rxe4 {[%clk 0:00:24.5]} 34... Kf7 {[%clk
0:00:23.3]} 35. f4 {[%clk 0:00:24.6]} 35... Kf6 {[%clk 0:00:22]} 36. g4 {[%clk
0:00:24.7]} 36... g6 {[%clk 0:00:22.4]} 37. Kg2 {[%clk 0:00:24.8]} 37... Rd8
{[%clk 0:00:20.2]} 38. Kf3 {[%clk 0:00:24.1]} 38... Rde8 {[%clk 0:00:20]} 39.
Re5 {[%clk 0:00:24.1]} 39... Rd8 {[%clk 0:00:18.8]} 40. Rc5 {[%clk 0:00:23.5]}
40... Rd6 {[%clk 0:00:18.8]} 41. Ree5 {[%clk 0:00:23.5]} 41... Kf7 {[%clk
0:00:16.4]} 42. h4 {[%clk 0:00:23.6]} 42... Kf6 {[%clk 0:00:16.1]} 43. Re4
{[%clk 0:00:19.1]} 43... Kf7 {[%clk 0:00:15.2]} 44. Rce5 {[%clk 0:00:18.7]}
44... Rd5 {[%clk 0:00:13.4]} 45. g5 {[%clk 0:00:16.6]} 45... Rxe5 {[%clk
0:00:12.2]} 46. Rxe5 {[%clk 0:00:15.7]} 46... hxg5 {[%clk 0:00:12.4]} 47. hxg5
{[%clk 0:00:16]} 47... Rd7 {[%clk 0:00:10.9]} 48. Rc5 {[%clk 0:00:15.4]} 48...
Rd6 {[%clk 0:00:09.7]} 49. Ke4 {[%clk 0:00:15.5]} 49... Ke7 {[%clk 0:00:09.3]}
50. Ke5 {[%clk 0:00:15.8]} 50... Kd7 {[%clk 0:00:08.7]} 51. Ke4 {[%clk
0:00:14.7]} 51... Rd5 {[%clk 0:00:07.5]} 52. Rxd5+ {[%clk 0:00:09]} 52... cxd5+
{[%clk 0:00:07.7]} 53. Ke5 {[%clk 0:00:09.2]} 53... Ke7 {[%clk 0:00:08.1]} 54.
f5 {[%clk 0:00:09]} 54... gxf5 {[%clk 0:00:07]} 55. g6 {[%clk 0:00:06.9]} 55...
Kf8 {[%clk 0:00:06.2]} 0-1

[Event "*** Titled Tuesday Blitz"]
[Site "Chess.com"]
[Date "2020.12.29"]
[Round "6"]
[White "Skat2704"]
[Black "sokidze"]
[Result "1-0"]
[WhiteElo "2383"]
[BlackElo "2524"]
[TimeControl "180+1"]
[EndTime "11:07:02 PST"]
[Termination "Skat2704 won on time"]

1. d4 {[%clk 0:03:00.9]} 1... Nf6 {[%clk 0:02:59.6]} 2. c4 {[%clk 0:03:01.7]}
2... e6 {[%clk 0:03:00.1]} 3. Nf3 {[%clk 0:03:01]} 3... b6 {[%clk 0:03:00.2]} 4.
g3 {[%clk 0:03:00.3]} 4... c6 {[%clk 0:03:00.3]} 5. Bg2 {[%clk 0:03:00.2]} 5...
Be7 {[%clk 0:03:00.9]} 6. O-O {[%clk 0:03:00.4]} 6... O-O {[%clk 0:03:01.6]} 7.
Nc3 {[%clk 0:02:59.8]} 7... d5 {[%clk 0:03:02.2]} 8. Qc2 {[%clk 0:02:55.9]} 8...
Ba6 {[%clk 0:02:57.7]} 9. cxd5 {[%clk 0:02:51.4]} 9... cxd5 {[%clk 0:02:58.6]}
10. Ne5 {[%clk 0:02:50.6]} 10... Nfd7 {[%clk 0:02:34.9]} 11. Nd3 {[%clk
0:02:47]} 11... Nc6 {[%clk 0:02:14]} 12. Qa4 {[%clk 0:02:45.7]} 12... Bb7 {[%clk
0:02:06.3]} 13. Bf4 {[%clk 0:02:41.9]} 13... a6 {[%clk 0:02:05.7]} 14. Ne5
{[%clk 0:02:28.1]} 14... Ndxe5 {[%clk 0:01:58.6]} 15. Bxe5 {[%clk 0:02:24.8]}
15... b5 {[%clk 0:01:50.3]} 16. Qd1 {[%clk 0:02:22.2]} 16... Qb6 {[%clk
0:01:47.4]} 17. e3 {[%clk 0:02:16.8]} 17... f6 {[%clk 0:01:41.7]} 18. Bf4 {[%clk
0:02:10]} 18... g5 {[%clk 0:01:39.3]} 19. Qg4 {[%clk 0:01:46.7]} 19... f5 {[%clk
0:01:38.9]} 20. Qh5 {[%clk 0:01:44.1]} 20... gxf4 {[%clk 0:01:35]} 21. gxf4
{[%clk 0:01:43.8]} 21... Qd8 {[%clk 0:01:32]} 22. Kh1 {[%clk 0:01:36.3]} 22...
Qe8 {[%clk 0:01:31.4]} 23. Qh3 {[%clk 0:01:32.2]} 23... Kh8 {[%clk 0:01:29.8]}
24. Rg1 {[%clk 0:01:29.4]} 24... Qf7 {[%clk 0:01:29.6]} 25. Ne2 {[%clk
0:01:23.3]} 25... Rg8 {[%clk 0:01:25.9]} 26. Ng3 {[%clk 0:01:21.1]} 26... Rg4
{[%clk 0:01:25.3]} 27. Bf3 {[%clk 0:01:20.4]} 27... Rh4 {[%clk 0:01:24.6]} 28.
Qf1 {[%clk 0:01:18.5]} 28... Rg8 {[%clk 0:01:23.9]} 29. Rg2 {[%clk 0:01:17.3]}
29... Bf6 {[%clk 0:01:19.8]} 30. Rc1 {[%clk 0:01:14.7]} 30... Rh6 {[%clk
0:01:05.4]} 31. b3 {[%clk 0:01:06.5]} 31... Be7 {[%clk 0:01:01.6]} 32. Qe2
{[%clk 0:01:04.2]} 32... Bd6 {[%clk 0:01:00.3]} 33. Qd2 {[%clk 0:01:02.6]} 33...
Ne7 {[%clk 0:00:56.3]} 34. a4 {[%clk 0:00:57.7]} 34... Ng6 {[%clk 0:00:43.1]}
35. Be2 {[%clk 0:00:47.9]} 35... Nh4 {[%clk 0:00:42.3]} 36. Rgg1 {[%clk
0:00:47.7]} 36... b4 {[%clk 0:00:33.9]} 37. a5 {[%clk 0:00:46.4]} 37... Qe7
{[%clk 0:00:32.2]} 38. Qe1 {[%clk 0:00:45]} 38... Rhg6 {[%clk 0:00:31.7]} 39.
Qf1 {[%clk 0:00:44.1]} 39... R6g7 {[%clk 0:00:27.9]} 40. Bxa6 {[%clk 0:00:43.3]}
40... Bxa6 {[%clk 0:00:22.2]} 41. Qxa6 {[%clk 0:00:42.4]} 41... Nf3 {[%clk
0:00:22.6]} 42. Rg2 {[%clk 0:00:42.2]} 42... Nd2 {[%clk 0:00:20.9]} 43. Qd3
{[%clk 0:00:41]} 43... Ne4 {[%clk 0:00:21.1]} 44. a6 {[%clk 0:00:40.3]} 44...
Qh4 {[%clk 0:00:14.5]} 45. Kg1 {[%clk 0:00:32.1]} 45... Nxg3 {[%clk 0:00:11.1]}
46. fxg3 {[%clk 0:00:31.5]} 46... Qe7 {[%clk 0:00:11.3]} 47. Ra1 {[%clk
0:00:30.7]} 47... Qa7 {[%clk 0:00:08]} 48. Rga2 {[%clk 0:00:29.5]} 48... Rc7
{[%clk 0:00:06.1]} 49. Qb5 {[%clk 0:00:28.2]} 49... Rb8 {[%clk 0:00:05.5]} 50.
Qd3 {[%clk 0:00:27.2]} 50... Rbc8 {[%clk 0:00:05.7]} 51. Qe2 {[%clk 0:00:26.5]}
51... Qb6 {[%clk 0:00:03.6]} 52. a7 {[%clk 0:00:24.2]} 52... Qb7 {[%clk
0:00:02.2]} 53. a8=Q {[%clk 0:00:20.9]} 53... Rxa8 {[%clk 0:00:02.3]} 54. Rxa8+
{[%clk 0:00:20.7]} 54... Kg7 {[%clk 0:00:03.2]} 55. Qa6 {[%clk 0:00:19.2]} 55...
Qxa6 {[%clk 0:00:01.1]} 56. R8xa6 {[%clk 0:00:18.7]} 1-0

[Event "*** Titled Tuesday Blitz"]
[Site "Chess.com"]
[Date "2020.12.29"]
[Round "6"]
[White "TregubovP"]
[Black "tjychess"]
[Result "0-1"]
[WhiteElo "2583"]
[BlackElo "2730"]
[TimeControl "180+1"]
[EndTime "11:07:03 PST"]
[Termination "tjychess won on time"]

1. e4 {[%clk 0:03:00.9]} 1... e5 {[%clk 0:02:59.3]} 2. Nf3 {[%clk 0:03:00.5]}
2... Nc6 {[%clk 0:02:59.8]} 3. Bb5 {[%clk 0:03:00.9]} 3... a6 {[%clk 0:02:59.8]}
4. Ba4 {[%clk 0:03:00.4]} 4... Nf6 {[%clk 0:03:00.1]} 5. d4 {[%clk 0:03:00.9]}
5... exd4 {[%clk 0:02:57.2]} 6. O-O {[%clk 0:03:00.6]} 6... Be7 {[%clk
0:02:51.4]} 7. e5 {[%clk 0:02:58.9]} 7... Ne4 {[%clk 0:02:51.6]} 8. Nxd4 {[%clk
0:02:58.8]} 8... O-O {[%clk 0:02:50.7]} 9. Nf5 {[%clk 0:02:55.7]} 9... d5 {[%clk
0:02:50.7]} 10. Nxe7+ {[%clk 0:02:53.1]} 10... Nxe7 {[%clk 0:02:51.6]} 11. c3
{[%clk 0:02:51.7]} 11... c6 {[%clk 0:02:37.9]} 12. Bc2 {[%clk 0:02:47.4]} 12...
Bf5 {[%clk 0:02:37]} 13. Be3 {[%clk 0:02:34.8]} 13... h6 {[%clk 0:02:05.4]} 14.
Qc1 {[%clk 0:02:22.9]} 14... Ng5 {[%clk 0:01:28.2]} 15. Na3 {[%clk 0:02:21.9]}
15... Ne6 {[%clk 0:01:24.3]} 16. Qd2 {[%clk 0:02:04.1]} 16... Qc7 {[%clk
0:01:20]} 17. Rae1 {[%clk 0:02:01.4]} 17... Rfe8 {[%clk 0:01:17.2]} 18. h3
{[%clk 0:01:59]} 18... Rad8 {[%clk 0:01:05.9]} 19. f4 {[%clk 0:01:57.5]} 19...
c5 {[%clk 0:01:02.4]} 20. Bf2 {[%clk 0:01:50.6]} 20... d4 {[%clk 0:01:00.7]} 21.
Nc4 {[%clk 0:01:34.3]} 21... d3 {[%clk 0:00:41]} 22. Bd1 {[%clk 0:01:31.7]}
22... Bh7 {[%clk 0:00:36.5]} 23. Nd6 {[%clk 0:01:24.9]} 23... Rxd6 {[%clk
0:00:36.5]} 24. exd6 {[%clk 0:01:24.5]} 24... Qxd6 {[%clk 0:00:37.4]} 25. Bb3
{[%clk 0:01:12.1]} 25... b5 {[%clk 0:00:19.6]} 26. Bxe6 {[%clk 0:01:04]} 26...
fxe6 {[%clk 0:00:20.5]} 27. b3 {[%clk 0:01:03.9]} 27... Nc6 {[%clk 0:00:15.9]}
28. c4 {[%clk 0:00:50.1]} 28... bxc4 {[%clk 0:00:13.4]} 29. bxc4 {[%clk
0:00:50.3]} 29... Nd4 {[%clk 0:00:13.2]} 30. Re5 {[%clk 0:00:44.1]} 30... Rd8
{[%clk 0:00:12.1]} 31. Rfe1 {[%clk 0:00:38.8]} 31... Bf5 {[%clk 0:00:09.3]} 32.
Kh2 {[%clk 0:00:34.8]} 32... Qc6 {[%clk 0:00:07.3]} 33. Qa5 {[%clk 0:00:25.3]}
33... Rd7 {[%clk 0:00:05.9]} 34. Qxc5 {[%clk 0:00:20.6]} 34... Qxc5 {[%clk
0:00:05.5]} 35. Rxc5 {[%clk 0:00:20]} 35... Ne2 {[%clk 0:00:05.5]} 36. Be3
{[%clk 0:00:16.1]} 36... d2 {[%clk 0:00:04.2]} 37. Rd1 {[%clk 0:00:14.9]} 37...
Rd3 {[%clk 0:00:05.1]} 38. Bxd2 {[%clk 0:00:12.1]} 38... Nc3 {[%clk 0:00:03.7]}
39. Bxc3 {[%clk 0:00:12.2]} 39... Rxd1 {[%clk 0:00:03.8]} 40. Rc7 {[%clk
0:00:12.5]} 40... g5 {[%clk 0:00:03.4]} 41. fxg5 {[%clk 0:00:11.1]} 41... hxg5
{[%clk 0:00:04.3]} 42. Rg7+ {[%clk 0:00:11.4]} 42... Kf8 {[%clk 0:00:04.9]} 43.
Rxg5 {[%clk 0:00:12]} 43... Rc1 {[%clk 0:00:05.8]} 44. Rg3 {[%clk 0:00:12.3]}
44... Rc2 {[%clk 0:00:05.7]} 45. a3 {[%clk 0:00:11.8]} 45... Be4 {[%clk
0:00:05.3]} 46. h4 {[%clk 0:00:12.2]} 46... Kf7 {[%clk 0:00:04.7]} 47. Kh3
{[%clk 0:00:12.2]} 47... Bf5+ {[%clk 0:00:04.8]} 48. Kh2 {[%clk 0:00:12]} 48...
Rc1 {[%clk 0:00:05.7]} 49. h5 {[%clk 0:00:10.6]} 49... e5 {[%clk 0:00:04]} 50.
h6 {[%clk 0:00:06.6]} 50... Kf6 {[%clk 0:00:04.1]} 51. Rf3 {[%clk 0:00:04.4]}
51... Rd1 {[%clk 0:00:03.5]} 52. h7 {[%clk 0:00:01.9]} 52... Rd8 {[%clk
0:00:02.7]} 53. Re3 {[%clk 0:00:01.9]} 53... Kg6 {[%clk 0:00:01.7]} 0-1

[Event "*** Titled Tuesday Blitz"]
[Site "Chess.com"]
[Date "2020.12.29"]
[Round "6"]
[White "Ave_Mariia"]
[Black "PavlovDanila"]
[Result "0-1"]
[WhiteElo "2494"]
[BlackElo "2681"]
[TimeControl "180+1"]
[EndTime "11:07:03 PST"]
[Termination "PavlovDanila won by checkmate"]

1. d4 {[%clk 0:03:00.9]} 1... Nf6 {[%clk 0:02:59.7]} 2. c4 {[%clk 0:03:01.2]}
2... g6 {[%clk 0:02:59.9]} 3. Nc3 {[%clk 0:02:59.8]} 3... Bg7 {[%clk 0:03:00.5]}
4. e4 {[%clk 0:03:00.1]} 4... d6 {[%clk 0:03:01.2]} 5. Be2 {[%clk 0:03:00.4]}
5... O-O {[%clk 0:03:01.7]} 6. Be3 {[%clk 0:03:00.7]} 6... e5 {[%clk 0:03:01.9]}
7. d5 {[%clk 0:02:59.2]} 7... c6 {[%clk 0:03:02.2]} 8. Nf3 {[%clk 0:02:53.5]}
8... cxd5 {[%clk 0:03:00.5]} 9. cxd5 {[%clk 0:02:53.3]} 9... Ng4 {[%clk
0:02:59.7]} 10. Bg5 {[%clk 0:02:53.4]} 10... f6 {[%clk 0:02:59]} 11. Bh4 {[%clk
0:02:53.8]} 11... g5 {[%clk 0:02:56.6]} 12. Bg3 {[%clk 0:02:53.8]} 12... f5
{[%clk 0:02:56.4]} 13. exf5 {[%clk 0:02:44.3]} 13... Bxf5 {[%clk 0:02:57.3]} 14.
h4 {[%clk 0:02:27.7]} 14... gxh4 {[%clk 0:02:27]} 15. Nxh4 {[%clk 0:02:26.2]}
15... Nh6 {[%clk 0:02:27.2]} 16. Nxf5 {[%clk 0:02:19.2]} 16... Nxf5 {[%clk
0:02:28.1]} 17. Qd3 {[%clk 0:02:05.9]} 17... Na6 {[%clk 0:02:19.9]} 18. Qf3
{[%clk 0:01:36.9]} 18... Qg5 {[%clk 0:01:36]} 19. Ne4 {[%clk 0:01:34.5]} 19...
Qg6 {[%clk 0:01:32.5]} 20. Qh5 {[%clk 0:01:24.4]} 20... Qxh5 {[%clk 0:01:19.3]}
21. Rxh5 {[%clk 0:01:22.6]} 21... Nc5 {[%clk 0:01:17.9]} 22. Nxc5 {[%clk
0:01:20.5]} 22... dxc5 {[%clk 0:01:18.6]} 23. O-O-O {[%clk 0:00:57.7]} 23... Nd4
{[%clk 0:01:11.5]} 24. Bd3 {[%clk 0:00:57.2]} 24... h6 {[%clk 0:01:07.1]} 25.
Bxe5 {[%clk 0:00:57]} 25... Bxe5 {[%clk 0:01:06.6]} 26. Rxe5 {[%clk 0:00:57.5]}
26... Rxf2 {[%clk 0:01:06.8]} 27. d6 {[%clk 0:00:56.6]} 27... b6 {[%clk
0:01:01.4]} 28. Bc4+ {[%clk 0:00:56.2]} 28... Kf8 {[%clk 0:00:58.4]} 29. Rde1
{[%clk 0:00:45.3]} 29... Rd8 {[%clk 0:00:51.3]} 30. Rd5 {[%clk 0:00:43.8]} 30...
Rc2+ {[%clk 0:00:48.2]} 31. Kb1 {[%clk 0:00:39.5]} 31... Rxc4 {[%clk 0:00:48.3]}
32. d7 {[%clk 0:00:32.3]} 32... Nc6 {[%clk 0:00:22]} 33. Rf5+ {[%clk 0:00:29.2]}
33... Kg7 {[%clk 0:00:21.7]} 34. Rd5 {[%clk 0:00:18.2]} 34... Rd4 {[%clk
0:00:20.6]} 35. Rd1 {[%clk 0:00:17.8]} 35... Rxd1+ {[%clk 0:00:19]} 36. Rxd1
{[%clk 0:00:17.8]} 36... Kf7 {[%clk 0:00:19.5]} 37. Rd6 {[%clk 0:00:17.7]} 37...
Ne7 {[%clk 0:00:16.6]} 38. Rxh6 {[%clk 0:00:16.6]} 38... Rxd7 {[%clk 0:00:16.8]}
39. g4 {[%clk 0:00:16.7]} 39... Rd2 {[%clk 0:00:15.2]} 40. g5 {[%clk 0:00:16.5]}
40... Rg2 {[%clk 0:00:15.4]} 41. Rh7+ {[%clk 0:00:14.8]} 41... Ke6 {[%clk
0:00:15.1]} 42. Rg7 {[%clk 0:00:15.2]} 42... a5 {[%clk 0:00:14]} 43. g6 {[%clk
0:00:13.7]} 43... Rxg6 {[%clk 0:00:13.3]} 44. Rh7 {[%clk 0:00:13.2]} 44... Kd6
{[%clk 0:00:12.7]} 45. a4 {[%clk 0:00:13]} 45... Nd5 {[%clk 0:00:12.7]} 46. Ka2
{[%clk 0:00:12.2]} 46... Nb4+ {[%clk 0:00:13.1]} 47. Ka3 {[%clk 0:00:12.4]}
47... Kc6 {[%clk 0:00:12.6]} 48. Ra7 {[%clk 0:00:11.2]} 48... Rg3+ {[%clk
0:00:07.9]} 49. b3 {[%clk 0:00:11.1]} 49... Nc2+ {[%clk 0:00:08.4]} 50. Kb2
{[%clk 0:00:10.9]} 50... Nd4 {[%clk 0:00:09.2]} 51. Rg7 {[%clk 0:00:09.1]} 51...
Rxb3+ {[%clk 0:00:09.8]} 52. Ka2 {[%clk 0:00:08.9]} 52... Rb4 {[%clk 0:00:10.4]}
53. Ka3 {[%clk 0:00:08.8]} 53... c4 {[%clk 0:00:08.1]} 54. Rg6+ {[%clk
0:00:07.9]} 54... Kb7 {[%clk 0:00:08.1]} 55. Rg7+ {[%clk 0:00:08.3]} 55... Ka6
{[%clk 0:00:08.5]} 56. Rd7 {[%clk 0:00:07.8]} 56... c3 {[%clk 0:00:07.7]} 57.
Rd8 {[%clk 0:00:03.8]} 57... Nc2+ {[%clk 0:00:07.8]} 58. Ka2 {[%clk 0:00:03.7]}
58... Rb2# {[%clk 0:00:08.7]} 0-1

[Event "*** Titled Tuesday Blitz"]
[Site "Chess.com"]
[Date "2020.12.29"]
[Round "6"]
[White "Nils_03"]
[Black "Rytenko_V"]
[Result "1/2-1/2"]
[WhiteElo "2252"]
[BlackElo "2422"]
[TimeControl "180+1"]
[EndTime "11:07:06 PST"]
[Termination "Game drawn by agreement"]

1. d4 {[%clk 0:03:00.9]} 1... d5 {[%clk 0:02:55.4]} 2. c4 {[%clk 0:03:00.8]}
2... c6 {[%clk 0:02:55.7]} 3. cxd5 {[%clk 0:03:00.9]} 3... cxd5 {[%clk
0:02:55.9]} 4. Bg5 {[%clk 0:03:00.2]} 4... Nc6 {[%clk 0:02:55.8]} 5. Nf3 {[%clk
0:02:58.9]} 5... h6 {[%clk 0:02:56.1]} 6. Bh4 {[%clk 0:02:58]} 6... Qb6 {[%clk
0:02:56.6]} 7. Qd2 {[%clk 0:02:51.4]} 7... Nf6 {[%clk 0:02:51.7]} 8. Bxf6 {[%clk
0:02:50.3]} 8... gxf6 {[%clk 0:02:50.9]} 9. Nc3 {[%clk 0:02:51.2]} 9... e6
{[%clk 0:02:44.9]} 10. e3 {[%clk 0:02:46.1]} 10... Bd6 {[%clk 0:02:43.1]} 11.
Bd3 {[%clk 0:02:39.3]} 11... Bd7 {[%clk 0:02:42.4]} 12. O-O {[%clk 0:02:35.6]}
12... Nb4 {[%clk 0:02:42.6]} 13. Be2 {[%clk 0:02:32.5]} 13... a6 {[%clk
0:02:42.4]} 14. a3 {[%clk 0:02:32.1]} 14... Nc6 {[%clk 0:02:43.1]} 15. b4 {[%clk
0:02:30.2]} 15... Rc8 {[%clk 0:02:27.6]} 16. e4 {[%clk 0:02:27.4]} 16... dxe4
{[%clk 0:02:19.8]} 17. Nxe4 {[%clk 0:02:28.3]} 17... Be7 {[%clk 0:02:12.9]} 18.
d5 {[%clk 0:02:21.7]} 18... exd5 {[%clk 0:02:00.5]} 19. Qxd5 {[%clk 0:02:22.6]}
19... Be6 {[%clk 0:02:00.7]} 20. Qh5 {[%clk 0:02:19.5]} 20... Nd4 {[%clk
0:01:47.5]} 21. Nxd4 {[%clk 0:02:13.6]} 21... Qxd4 {[%clk 0:01:48.4]} 22. Bf3
{[%clk 0:02:09.7]} 22... Qe5 {[%clk 0:01:41.3]} 23. Rac1 {[%clk 0:01:59.9]}
23... Qxh5 {[%clk 0:01:20.6]} 24. Bxh5 {[%clk 0:01:59.4]} 24... O-O {[%clk
0:01:18.6]} 25. h3 {[%clk 0:01:46.1]} 25... f5 {[%clk 0:01:16.2]} 26. Ng3 {[%clk
0:01:36.3]} 26... Bf6 {[%clk 0:01:10.1]} 27. Bf3 {[%clk 0:01:35.7]} 27... b6
{[%clk 0:00:56.2]} 28. a4 {[%clk 0:01:22.7]} 28... a5 {[%clk 0:00:52.6]} 29.
bxa5 {[%clk 0:01:18.2]} 29... bxa5 {[%clk 0:00:53.5]} 30. Bc6 {[%clk 0:01:06.5]}
30... Be5 {[%clk 0:00:42.4]} 31. Bb5 {[%clk 0:01:03.2]} 31... Rfd8 {[%clk
0:00:36.2]} 32. Rfe1 {[%clk 0:00:55.1]} 32... Bc3 {[%clk 0:00:35.4]} 33. Re3
{[%clk 0:00:50.3]} 33... Bd2 {[%clk 0:00:31.2]} 34. Rxc8 {[%clk 0:00:49]} 34...
Rxc8 {[%clk 0:00:32.1]} 35. Rd3 {[%clk 0:00:44.6]} 35... Bb4 {[%clk 0:00:31.9]}
36. Bd7 {[%clk 0:00:31.9]} 36... Rd8 {[%clk 0:00:25.4]} 37. Bb5 {[%clk
0:00:31.8]} 37... Rc8 {[%clk 0:00:19.9]} 38. Bd7 {[%clk 0:00:30.8]} 38... Rc2
{[%clk 0:00:20]} 39. Nxf5 {[%clk 0:00:24.9]} 39... Bxf5 {[%clk 0:00:12.2]} 40.
Bxf5 {[%clk 0:00:25.8]} 40... Rc1+ {[%clk 0:00:11.1]} 41. Kh2 {[%clk 0:00:25.2]}
41... Kg7 {[%clk 0:00:11.8]} 42. Rg3+ {[%clk 0:00:23.4]} 42... Kf6 {[%clk
0:00:11.4]} 43. Bd7 {[%clk 0:00:23.2]} 43... Rc7 {[%clk 0:00:09.5]} 44. Rf3+
{[%clk 0:00:21.9]} 44... Ke7 {[%clk 0:00:09.1]} 45. Bb5 {[%clk 0:00:21.8]} 45...
Rc5 {[%clk 0:00:09.5]} 46. g3 {[%clk 0:00:21.6]} 46... Rc2 {[%clk 0:00:09.1]}
47. Kg2 {[%clk 0:00:21.9]} 47... Bc5 {[%clk 0:00:08.1]} 48. Rf4 {[%clk
0:00:19.3]} 48... f6 {[%clk 0:00:07.5]} 49. Re4+ {[%clk 0:00:19.3]} 49... Kf8
{[%clk 0:00:06.2]} 50. Rc4 {[%clk 0:00:16]} 50... Rxc4 {[%clk 0:00:04.8]} 51.
Bxc4 {[%clk 0:00:16.9]} 51... Ke7 {[%clk 0:00:05.3]} 52. f4 {[%clk 0:00:16.4]}
52... Kf8 {[%clk 0:00:05.5]} 53. Kf3 {[%clk 0:00:16.8]} 53... Kg7 {[%clk
0:00:06.2]} 54. Ke4 {[%clk 0:00:17.3]} 54... Bb4 {[%clk 0:00:07.1]} 55. Kf5
{[%clk 0:00:17.5]} 55... Be1 {[%clk 0:00:07.6]} 56. g4 {[%clk 0:00:17.7]} 56...
Bd2 {[%clk 0:00:08.3]} 57. h4 {[%clk 0:00:18.3]} 57... Be1 {[%clk 0:00:08.2]}
58. g5 {[%clk 0:00:18.8]} 58... hxg5 {[%clk 0:00:08]} 59. hxg5 {[%clk
0:00:19.7]} 59... fxg5 {[%clk 0:00:08.9]} 60. fxg5 {[%clk 0:00:20.6]} 60... Bc3
{[%clk 0:00:09.5]} 61. g6 {[%clk 0:00:20.5]} 61... Bb4 {[%clk 0:00:10]} 1/2-1/2